Cogmind - Beta 17.1 @@@ ROGUE MODE // 2026.09.01 @ 02:49:24 Player: 4R-ZE3 Result: Destroyed by AB-HS5(j) with Overtuned Pulse Rifle Performance ------------- Evolutions (0) 0 Regions Visited (3) 600 Robots Destroyed (17) 85 Value Destroyed (419) 419 Prototype IDs (26) 520 Alien Tech Used (0) 0 Bonus (5802) 5802 TOTAL SCORE: 7426 Bonus ------- Follower Combat Kills 502 Prayed to X0-1V1 5000 Registered with UFD 300 Cogmind --------- Core Integrity 0/250 Matter 290/300 Energy 121/125 System Corruption 0% Temperature Cool (12) Movement Treading (160) Location -8/Scraptown Parts ------- > --- POWER (1) -------- Light Ion Engine > --- PROPULSION (2) --- Light Treads Spiked Treads > --- UTILITY (2) ------ Large Storage Unit X0-1V1's Piety Tracker > --- WEAPON (2) ------- EM Pulse Gun > --- INVENTORY (15) --- Subdweller Power Source Light Treads Improved Treads Cooling System Experimental Sensor Array Improved Signal Interpreter Transmission Jammer Hardened Light Armor Plating Improved Light Armor Plating EM Disruption Field Datajack Peak State ------------ > --- POWER ------------ Angular Momentum Engine > --- PROPULSION ------- Spiked Treads Medium Treads > --- UTILITY ---------- Large Storage Unit X0-1V1's Piety Tracker > --- WEAPON ----------- Datajack CPS Tube > --- INVENTORY -------- Light Ion Engine Subdweller Power Source Light Treads Light Treads Improved Treads Wheel Cooling System Experimental Sensor Array Improved Signal Interpreter Transmission Jammer Hardened Light Armor Plating Improved Light Armor Plating EM Disruption Field Rocket Launcher CPS Tube [Rating: 33] Favorites ----------- Power Subdweller Power Source Engine Subdweller Power Source Propulsion Light Treads Treads Light Treads Wheel Wheel Utility Small Storage Unit Device X0-1V1's Piety Tracker Storage Small Storage Unit Weapon Datajack Energy Gun Medium Laser Ballistic Gun Assault Rifle Special Weapon CPS Tube Piercing Weapon Heavy Pick Special Melee Weapon Datajack Build | -11 -10 -10 -8 ------- Run | Yrd Mat Sub Scr Slots Evolved . | . . . . Power . | . . . . Propulsion . | . . . . Utility . | . . . . Weapon . | . . . . Parts Attached 23 | 6 6 . 11 Power 4 | 1 1 . 2 Engine 4 | 1 1 . 2 Core . | . . . . Reactor . | . . . . Propulsion 6 | 2 1 . 3 Treads 4 | 2 1 . 1 Leg . | . . . . Wheel 2 | . . . 2 Hover . | . . . . Flight . | . . . . Utility 5 | 1 3 . 1 Device 3 | . 3 . . Storage 2 | 1 . . 1 Processor . | . . . . Hackware . | . . . . Protection . | . . . . Artifact . | . . . . Weapon 8 | 2 1 . 5 Energy Gun 2 | . 1 . 1 Energy Cannon . | . . . . Ballistic Gun 2 | 2 . . . Ballistic Cannon . | . . . . Launcher . | . . . . Special Weapon 2 | . . . 2 Impact Weapon . | . . . . Slashing Weapon . | . . . . Piercing Weapon 1 | . . . 1 Special Melee Weapon 1 | . . . 1 Unidentified Prototypes 1 | . 1 . . Parts Lost 10 | . 3 . 7 Power 2 | . 1 . 1 Propulsion 3 | . . . 3 Utility 1 | . 1 . . Weapon 4 | . 1 . 3 Highest Loss Streak 7 | . 2 . 7 To Critical Strikes . | . . . . Average Backups 8 | . 4 7 10 Power 1 | . 1 2 1 Propulsion 1 | . . 1 2 Utility 2 | . . 1 4 Weapon . | . 2 2 . Tool/Special . | . . . . Unused Backups 12 | . . . 12 Power 1 | . . . 1 Propulsion 1 | . . . 1 Utility 7 | . . . 7 Weapon 3 | . . . 3 Tool/Special . | . . . . Average Slot Usage (%) 97 | . 93 100 99 Engine 13 | . 13 14 13 Treads 26 | . 28 28 25 Wheel 1 | . . . 2 Device 12 | . 8 14 14 Storage 14 | . 14 14 14 Energy Gun 8 | . 3 14 10 Ballistic Gun 8 | . 24 14 . Special Weapon 2 | . . . 3 Special Melee Weapon 8 | . . . 13 Peak Build Rating 33 | 6 21 21 33 Average Rating 20 | 4 7 21 26 On Entrance 12 | . 6 21 21 Avg Prop Armor Cover (%) 15 | . . . 15 Naked Turns . | . . . . Heaviest Build 37 | 14 15 15 37 Greatest Support 48 | 40 40 40 48 Greatest Overweight (x) 3 | . . . 3 Average Overweight (x) . | . . . . Largest Inventory Capacity 15 | 8 8 8 15 Average Capacity 10 | 7 8 8 11 Most Carried 15 | 2 7 7 15 Average Carried 8 | . 4 7 10 Final Capacity 15 | 8 8 8 15 Final Carried 11 | 2 7 7 11 Class Distribution -------------------- 100% | Mutant Dominant Class ---------------- Mutant | -10/Materials Mutant | -10/Subcaves Mutant | -8/Scraptown Resources | -11 -10 -10 -8 ----------- Run | Yrd Mat Sub Scr Matter Collected 677 | 124 453 . 100 Remotely . | . . . . Salvage Created 547 | . 547 . . Parts 41 | . 41 . . Haulers Intercepted . | . . . . Recyclers Shooed . | . . . . Parts Field Recycled . | . . . . Retrieved Matter . | . . . . Parts Self-Destructed . | . . . . Prevented . | . . . . Parts Restored . | . . . . Kills | -11 -10 -10 -8 ------- Run | Yrd Mat Sub Scr Combat Hostiles Destroyed 15 | . 15 . . Guns 15 | . 15 . . Classes Destroyed 5 | . 5 . . Worker 1 | . 1 . . Operator 1 | . 1 . . Swarmer 5 | . 5 . . Grunt 8 | . 8 . . Subdweller 2 | . 2 . . Best Kill Streak 3 | . 3 . . Combat Bots Only 3 | . 3 . . Max Kills in Single Turn 1 | . 1 . . Gunslinging . | . . . . Exploded . | . . . . Melee . | . . . . Uniques/NPCs Destroyed . | . . . . Combat | -11 -10 -10 -8 -------- Run | Yrd Mat Sub Scr Hostile Shots Fired 83 | . 71 . 12 Missed 16 | . 16 . . Hits 67 | . 55 . 12 Projectile 67 | . 55 . 12 Critical Strikes 1 | . . . 1 Damage Taken 1249 | . 651 . 598 Core 257 | . 94 . 163 Absorbed by Shields . | . . . . Core Remaining (%) 100 | 100 . . . Volleys Fired 51 | . 49 . 2 Largest 2 | . 2 . 1 Hottest 70 | . 70 . 40 Shots Fired 100 | . 98 . 2 Gun 99 | . 98 . 1 Cannon . | . . . . Launcher . | . . . . Special 1 | . . . 1 Kinetic 94 | . 94 . . Thermal 4 | . 4 . . Explosive . | . . . . Electromagnetic 1 | . . . 1 Robot Hit Streak 12 | . 12 . 7 Robot Miss Streak 3 | . 3 . . Penetration Max . | . . . . Secondary Targets 3 | . 3 . . Max Gunslinging Chain 1 | . 1 . . Shots Hit Robots 74 | . 69 . 5 Core Hits 29 | . 29 . . Critical Kills 2 | . 2 . . Critical Parts Destroyed 1 | . 1 . . Critical Strikes 5 | . 5 . . Burn 1 | . 1 . . Destroy 4 | . 4 . . Melee Attacks 3 | . . . 3 Impact . | . . . . Slashing . | . . . . Piercing 1 | . . . 1 Sneak Attacks 2 | . . . 2 Combat Hostiles . | . . . . Follow-up Attacks . | . . . . Damage Inflicted 935 | . 905 . 30 Guns 912 | . 905 . 7 Cannons . | . . . . Explosions . | . . . . Melee 23 | . . . 23 Ramming . | . . . . Kinetic 878 | . 878 . . Thermal 27 | . 27 . . Explosive . | . . . . Electromagnetic 7 | . . . 7 Impact . | . . . . Slashing . | . . . . Piercing 23 | . . . 23 Highest Corruption . | . . . . Average Corruption . | . . . . Corruption Purged . | . . . . Corruption Blocked . | . . . . Overload Shots . | . . . . Overflow Damage . | . . . . Projectiles . | . . . . Explosions . | . . . . Melee . | . . . . Knockbacks . | . . . . Impact . | . . . . Kinetic . | . . . . Secondary . | . . . . Self-Inflicted Damage . | . . . . Shots . | . . . . Rammed . | . . . . Targets Rammed . | . . . . Kicked . | . . . . Crushed . | . . . . Highest Temperature 18 | . 18 . 13 Average Temperature 10 | . 10 . 12 Received Heat Transfer 307 | . 138 . 169 Siege Activations . | . . . . Martial Activations . | . . . . Shielding Activations . | . . . . Robots Disrupted . | . . . . Combat Hostiles . | . . . . Robots Corrupted . | . . . . Combat Hostiles . | . . . . Parts Fried . | . . . . Impact Corruptions . | . . . . Robots Melted . | . . . . Combat Hostiles . | . . . . Parts Melted . | . . . . Heat Transferred 148 | . 148 . . Parts Sabotaged . | . . . . Parts Stolen . | . . . . Parts Stripped . | . . . . Power Chain Reactions . | . . . . Alert | -11 -10 -10 -8 ------- Run | Yrd Mat Sub Scr Maximum Alert Level . | . . . . Low Security (%) 100 | 100 100 . . Level 1 . | . . . . Level 2 . | . . . . Level 3 . | . . . . Level 4 . | . . . . Level 5 . | . . . . High Security . | . . . . Max Security . | . . . . Peak Influence 113 | . 113 . . Initial . | . . . . Average 35 | . 37 . . Influence Increases 400 | . 400 . . Destroy 0b10 Robot/C 260 | . 260 . . Destroy 0b10 Robot/NC 10 | . 10 . . Destroy Leader 60 | . 60 . . Successful Hack 25 | . 25 . . Select Force Hacks 30 | . 30 . . Lose Combat Pursuer 15 | . 15 . . Influence Decreases 400 | . 329 65 6 Entered New Map 41 | . . 35 6 Time Decay 349 | . 319 30 . Lost Part 10 | . 10 . . Squads Dispatched 4 | . 4 . . Investigation 1 | . 1 . . Extermination . | . . . . Reinforcement 3 | . 3 . . Assault . | . . . . Garrison . | . . . . Intercept . | . . . . Searches Triggered . | . . . . Construction Impeded . | . . . . Haulers Reinforced . | . . . . Active Scanning Responses . | . . . . Cargo Convoy Interrupts . | . . . . Stealth | -11 -10 -10 -8 --------- Run | Yrd Mat Sub Scr Distress Signals . | . . . . Communications Jammed . | . . . . Distress Signals . | . . . . Times Spotted 50 | . 26 . 24 Peak Tracking Total 11 | . 3 . 11 Tactical Retreats 3 | . 2 . 1 Traps | -11 -10 -10 -8 ------- Run | Yrd Mat Sub Scr Traps Triggered . | . . . . Indirectly . | . . . . Trap Hack Attempts . | . . . . Triggered . | . . . . Disarmed . | . . . . Reprogrammed . | . . . . Reused . | . . . . Traps Extracted . | . . . . Installed . | . . . . Triggered . | . . . . Machines | -11 -10 -10 -8 ---------- Run | Yrd Mat Sub Scr Machines Disabled 4 | . . . 4 Max in Single Turn . | . . . . Machines Repaired . | . . . . Machines Dismantled . | . . . . Machines Sabotaged . | . . . . Overloaded Fab Kills . | . . . . Hacking | -11 -10 -10 -8 --------- Run | Yrd Mat Sub Scr Machines Accessed 10 | . 4 . 6 Terminals 3 | . 3 . . Fabricators . | . . . . Repair Stations . | . . . . Recycling Units 1 | . 1 . . Scanalyzers . | . . . . Garrison Access . | . . . . Total Hacks 49 | . 10 . 39 Successful 43 | . 4 . 39 Failed 6 | . 6 . . Catastrophic 2 | . 2 . . Database Lockouts . | . . . . Manual 10 | . 10 . . Terminals 9 | . 9 . . Fabricators . | . . . . Repair Stations . | . . . . Recycling Units 1 | . 1 . . Scanalyzers . | . . . . Garrison Access . | . . . . Terminal Hacks 41 | . 2 . 39 Record 31 | . . . 31 Robot Analysis 9 | . 2 . 7 Proto ID Catalog 1 | . . . 1 Fabricator Hacks . | . . . . Repair Station Hacks . | . . . . Recycling Unit Hacks . | . . . . Scanalyzer . | . . . . Garrison Access Hacks . | . . . . Unauthorized Hacks 2 | . 2 . . Terminals 1 | . 1 . . Botnet 1 | . 1 . . Fabricators . | . . . . Repair Stations . | . . . . Recycling Units 1 | . 1 . . Tunnel 1 | . 1 . . Scanalyzers . | . . . . Garrison Access . | . . . . Data Cores Recovered . | . . . . Used . | . . . . Hacking Detections 3 | . 3 . . Full Trace Events . | . . . . Feedback Events . | . . . . Feedback Blocked . | . . . . Robot Schematics Acquired . | . . . . Robots Built . | . . . . Authchips . | . . . . Time . | . . . . Total Robot Build Rating . | . . . . Part Schematics Acquired . | . . . . Parts Built . | . . . . Authchips . | . . . . Time . | . . . . Total Part Build Rating . | . . . . Part Studies Acquired . | . . . . Parts Repaired . | . . . . Time . | . . . . Parts Recycled . | . . . . Recycled Matter . | . . . . Retrieved Matter . | . . . . Retrieved Components . | . . . . Parts Scanalyzed . | . . . . Part Schematics Acquired . | . . . . Parts Damaged . | . . . . Bothacking | -11 -10 -10 -8 ------------ Run | Yrd Mat Sub Scr Used RIF Installer . | . . . . Robots Hacked 2 | . . . 2 Non-combat . | . . . . Combat 2 | . . . 2 Robot Hacks Applied 2 | . . . 2 parse_system 2 | . . . 2 Relay Couplers Released . | . . . . Fabnet Peak Effective % . | . . . . Robots Rewired . | . . . . Allies Hacked . | . . . . Hacks Repelled . | . . . . Allies | -11 -10 -10 -8 -------- Run | Yrd Mat Sub Scr Total Allies 1 | . . . 1 Largest Group 1 | . . . 1 Highest-Rated Group 464 | . . . 464 Highest-Rated Ally 464 | . . . 464 Total Orders . | . . . . Ally Attacks 37 | . . . 37 Total Damage 3336 | . . . 3336 Kills 17 | . . . 17 Allies Corrupted . | . . . . Allies Melted . | . . . . X0-1V1 Amusement Gains 45 | . 5 . 40 Average Entertainment 14 | . 5 2 28 Good Acts 1 | . . 1 . Intel | -11 -10 -10 -8 ------- Run | Yrd Mat Sub Scr Active Infowar (turns) . | . . . . Robot Analysis Total 9 | . 2 . 7 Derelict Logs Recovered 2 | . . . 2 Drone Launches . | . . . . Drone Recoveries . | . . . . Exploration | -11 -10 -10 -8 ------------- Run | Yrd Mat Sub Scr Turns Passed 3487 | 64 1086 63 2274 Spaces Moved 1981 | 36 443 40 1462 Core 3 | 3 . . . Treads 1656 | 33 443 40 1140 Legs . | . . . . Wheels 322 | . . . 322 Hover . | . . . . Flight . | . . . . Fastest Speed 50 | 50 160 160 110 Average Speed 154 | 150 160 160 152 Slowest Speed 240 | 160 160 160 240 Overloaded Moves . | . . . . Propulsion Burnouts . | . . . . Robots Hopped . | . . . . Potential Cave-ins . | . . . . Cave-ins Triggered . | . . . . Exploration Rate (%) 38 | 4 65 4 82 Regions Visited 3 Branch Regions 2 Pre-discovered Areas 1 | . 1 . . Known Exits Taken . | . . . . Unknown Exits Taken 3 | 1 1 1 . Scrap Searched 2 | . . . 2 Spaces Dug . | . . . . Terrain Destroyed . | . . . . Melee . | . . . . Projectile . | . . . . AOE . | . . . . Terrain Rammed . | . . . . Walls Destroyed . | . . . . Machines Disabled . | . . . . Actions | -11 -10 -10 -8 --------- Run | Yrd Mat Sub Scr Total 2311 | 43 720 39 1509 Wait 218 | . 218 . . Move 1978 | 35 442 39 1462 Hop . | . . . . Pick Up 23 | 2 4 . 17 Fast Attach 12 | 6 4 . 2 Attach 8 | . 1 . 7 Detach 2 | . 1 . 1 Swap 5 | . 1 . 4 Drop 11 | . . . 11 Fire 51 | . 49 . 2 Melee 3 | . . . 3 Ram . | . . . . Kick . | . . . . Crush . | . . . . Escape Stasis . | . . . . Rewire . | . . . . Trap . | . . . . Miscellaneous . | . . . . Route ------- -11/Scrapyard -10/Materials (discovered 4 exits: [*Mat x2] / [*Min] / [*Sub]) -10/Subcaves (discovered 2 exits: Mat / *Scr) -8/Scraptown (discovered 1 exit: [*Fac]) History --------- Turn | Location | Event 23 | -11/Scrapyard | Discovered new exit (range 14) 65 | -11/Scrapyard | Entered Materials 270 | -10/Materials | Discovered new exit (range 14) 303 | -10/Materials | Build established: Mutant 401 | -10/Materials | Discovered new exit (range 6) 565 | -10/Materials | Derelicts attacked the area 851 | -10/Materials | Discovered new exit (range 6) 1126 | -10/Materials | Discovered new exit (range 5) 1139 | -10/Materials | Prayed at D.C.S.S. Altar Unit 1151 | -10/Materials | Entered Subcaves 1152 | -10/Subcaves | Approached by a straggling Scientist 1187 | -10/Subcaves | Scientist uncovered a shortcut to Scraptown 1206 | -10/Subcaves | Identified exit to Materials 1206 | -10/Subcaves | X0-1V1 revealed exit location to -8/Materials 1214 | -10/Subcaves | Entered Scraptown 1452 | -8/Scraptown | Visited Junk Repository 1538 | -8/Scraptown | Visited Spacefarers 1556 | -8/Scraptown | Visited Junk Repository 1572 | -8/Scraptown | Visited Awakened 1966 | -8/Scraptown | Scanned Subdweller tech in exchange for log data 1970 | -8/Scraptown | Learned Factory garrison access intel 1972 | -8/Scraptown | Learned location of 2 exits from Lower Caves 1990 | -8/Scraptown | Discovered new exit (range 13) 2098 | -8/Scraptown | Visited Cyclists 2158 | -8/Scraptown | Visited SPCMW 2223 | -8/Scraptown | Visited UFD Registry 2223 | -8/Scraptown | Registered with UFD as "Nanoglider" 2260 | -8/Scraptown | Visited Scrap Suit Storage 2284 | -8/Scraptown | Visited Chapter 10 2306 | -8/Scraptown | Visited LU-1G1's Boring Crew 2421 | -8/Scraptown | Visited Abandonware Association 2437 | -8/Scraptown | Learned abandonware demo "REVENGE.EXE" 2437 | -8/Scraptown | Learned abandonware demo "POISON.EXE" 2474 | -8/Scraptown | Visited Infowarlord's Domain 2483 | -8/Scraptown | Found Exp. Sensor Array 2526 | -8/Scraptown | Visited Analyses Database 2564 | -8/Scraptown | Visited Science Testing Area 2590 | -8/Scraptown | Visited Science Guys 2649 | -8/Scraptown | Visited Curators Association 3397 | -8/Scraptown | Entered Cyclist Reading Room 3431 | -8/Scraptown | Visited Shadow of the Wyrm 3438 | -8/Scraptown | X0-1V1 brought Wyrm Statue to life 3438 | -8/Scraptown | Attacked by Scraptown defenders 3442 | -8/Scraptown | Core integrity fell below 50% 3448 | -8/Scraptown | Core integrity fell below 20% 3449 | -8/Scraptown | Attached CPS modules to Chaos Wyrm 3488 | -8/Scraptown | Destroyed by AB-HS5(j) with Overtuned Pulse Rifle Last Messages --------------- 03475_ Med. Treads destroyed. 03476_ X0-1V1 is amused. 03478_ Slug penetrates Chaos Wyrm. 03479_ Acquired Wheel. 03480_ R2-V61(E) destroyed. 03480_ Slug penetrates Chaos Wyrm. 03481_ AB-HS5(j): "The Cyclists will sing the praises of my great deeds here!" 03481_ Slug penetrates Chaos Wyrm. 03481_ Bolt penetrates T0-NE2. 03481_ CPS Tube destroyed. 03482_ 8J-14L(E) suffers critical hit (Meltdown). 03484_ Wheel destroyed. 03484_ Bolt penetrates Chaos Wyrm. 03485_ IH-HN4(x) destroyed. 03486_ Penetrated by Slug. 03486_ Bolt penetrates Chaos Wyrm. 03488_ GC-ITP(p) destroyed. 03488_ X0-1V1 chortles! Map ----- +----------------------------------------------------+ | " "?????#######???????? #?#"""""""""#""""??"""# | | " "#???#"""""""#???????# #?#" "#" ? "# | | " "#???#"" ""#???????# #?#" """ "# | | "#???#"" ""#???????# #?#" "#" "" "# | | """###?#""" ""#???????# #?#" """ "#" " "# | | #?#"" ""#??????## ###" "#" "# | | ###""" """######## ##"""""" ""#"" """"""# | | # | | # | | # | | ###### ########### ##########"" """"##### | | #????# #?????????## ##????????#" "#???? | | #????" "?????#????# #########?#" ""#???? | | #??? " " ????? ??# """"""""#?#" """#???? | | "" ""#??" "??### ### " ""#?#" """#???? | | "" "#? " " ?#"" """ "#?#"""""""#???? | | "" "#?"""" """"?#" """c% " ""#?#######?????? | | " "#???## ##???#" " """"""""#?????????????? | | "#?"""" """"?#" ##"""####?????????????? | | "" ""#? " " ?#" "" " ##########??????? ?? ? | | ## ###??" "??#" " ### ##???? """"""? | | ?# ????? " " ???#"""""" ## = ##?? "" "? | | ??##??????" "????####### # % #?? " " | | ??????????# #??????????# ## ##?? " " | | ########### ############ # % =% #?? " " | | j @E# #???" " | | b #????" "" | | ######################## # ! ##??????"""" | | ??????????????????????# /%= #????????? | | ######???????????????## % "################ | | """""#??????????###### DD[ ! | | "#??????????#"X" # DD % | | [/ "#??????????# # !%%/ | | ! "#??????????# # % | | |! "#??????????# # ! | | !! "#????####### # ################# | | /!! "#????#""" "# # b#???????????????# | | !! "#????#" ## # #???????????????# | | "#????##X # h #???????????????# | | "" ""#????#" ## #???????????????# | | ## ###????#" X "#""" # #???????????????# | | ## ###????############ #???????????????# | | "" ""#???????????????# #???????????????# | | "#???????????????# #???????????????# | | "" "#???????????????# #???????????????# | | "" "#???????#####???# ####?####???????# | | "#???????"""""???# ##[ ?]!/#???????# | | ""#??????? ??# ##|=? ]!#? #????# | | """""#???????? ??# ## # # ?????# | | """""#???????? """ ?# ## ???????# | +----------------------------------------------------+ Best States ------------- Heat Dissipation 35 Energy Generation 18 Energy Capacity 300 Matter Stores 300 Matter Capacity 300 Sight Range 16 Terrain Scan Density 10 Evasion (%) 40 Recoil Reduction 2 Item Schematics ----------------- None Robot Schematics ------------------ None Fabricated ------------ Nothing Repaired ---------- Nothing Studied --------- None Alien Tech Used ----------------- None Achievements -------------- None Challenges ------------ None Game ------ Seed FlakDefenseLaser Manual? 0 Play Time 00:18:03 Cumulative 311.5 hours Start 2026.09.01 @ 02:31:33 End 2026.09.01 @ 02:49:24 Sessions 1 Manual Loads 0 Difficulty Rogue Special Mode None Game No. 298 Rogue 244 Adventurer 54 Explorer 0 Win Type - Total 12 Types 8/0/1/1/0/0/0/1/0/1 Lore% 78 Gallery% 67 Achievement% 61 Wizard Run 0 Options --------- Layout 1 ASCII 0 Keyboard 0 Movement Mouse Keybinds 1 Fullscreen 2 Font 32/Tamsyn Map View 50x35 Zoom Use 0% Tactical HUD 1 Map Filters NONE Filters NONE Steam 1 RUN: 5d688cd1-f7f5-4384-aa93-728771435c7e